bitfinex-derivatives/quotes_SOLF0:USTF0_20250904
["timestamp","ask_amount","ask_price","bid_price","bid_amount"]
[1756961518479,0.03249755,207.72,207.66,4.03121956]
[1756961518480,0.03249755,207.72,207.69,7.87]
[1756961518679,7.63,207.71,207.69,7.87]
[1756961520080,7.63,207.71,207.66,1.95663239]
[1756961520280,7.63,207.71,207.67,7.87]
[1756961521281,7.63,207.71,207.65,1.95663239]
[1756961521881,7.63,207.71,207.66,7.87]
[1756961522281,7.63,207.69,207.63,11.90121956]
[1756961530384,7.63,207.68,207.63,7.87]
[1756961530685,40.42,207.69,207.63,7.87]
[1756961530879,7.63,207.68,207.63,7.87]
[1756961531081,0.03536712,207.68,207.63,7.87]
[1756961531286,7.63,207.67,207.6,7.87]
[1756961531884,10.69131828,207.67,207.6,7.87]
[1756961532189,7.72,207.66,207.57,7.87]
[1756961532579,61.24,207.65,207.57,7.87]
[1756961532785,7.72,207.63,207.57,7.87]
[1756961533984,86.27621489,207.64,207.57,7.87]
[1756961534184,93.99621489,207.64,207.57,7.87]
[1756961534385,93.99621489,207.64,207.55,7.87]
[1756961534587,7.75621489,207.64,207.55,7.87]
[1756961534787,20.7,207.64,207.55,7.87]
[1756961535089,7.72,207.61,207.55,7.87]
[1756961535289,7.72,207.61,207.52,7.87]
[1756961535884,7.75321712,207.59,207.52,7.87]
[1756961536388,7.72,207.57,207.48,7.87]
[1756961537089,0.03337268,207.55,207.48,7.87]
[1756961537285,7.75337268,207.55,207.48,7.87]
[1756961538395,7.72,207.5,207.32,4.03121956]
[1756961538595,7.72,207.41,207.32,7.87]
[1756961539093,0.03085373,207.39,207.32,7.87]
[1756961539791,0.03085373,207.39,207.25,0.83941386]
[1756961539792,0.03085373,207.39,207.34,7.87]
[1756961539988,0.03085373,207.39,207.31,3.06131828]
[1756961540194,7.72,207.4,207.32,7.87]
[1756961540493,0.03644111,207.37,207.27,3.06131828]
[1756961540787,0.03644111,207.37,207.28,7.87]
[1756961545299,7.75644111,207.37,207.28,7.87]
[1756961548193,10.81775939,207.37,207.28,7.87]
[1756961549296,7.75644111,207.37,207.28,7.87]
[1756961550595,0.03644111,207.37,207.28,7.87]
[1756961550799,0.03644111,207.37,207.23,36.8]
[1756961550800,0.03644111,207.37,207.31,7.87]
[1756961550991,0.03644111,207.37,207.34,7.87]
[1756961551197,7.72,207.45,207.33,7.87]
[1756961551397,0.03611809,207.38,207.33,7.87]
[1756961554401,0.03611809,207.38,207.36,7.87]
[1756961554696,0.03611809,207.38,207.35,3.06131828]
[1756961554902,0.03611809,207.38,207.22,0.83964677]
[1756961554903,7.72,207.37,207.23,7.87]
[1756961555097,7.72,207.37,207.26,7.87]
[1756961555502,0.03041154,207.34,207.26,7.87]
[1756961556704,0.03041154,207.34,207.25,71.06131828]
[1756961556705,10.78131828,207.33,207.22,0.83964677]
[1756961557106,10.78131828,207.33,207.21,7.87]
[1756961557312,0.03247048,207.3,207.21,7.87]
[1756961559409,0.03247048,207.3,207.2,7.87]
[1756961559809,0.03247048,207.3,207.2,11.54]
[1756961560010,0.03247048,207.3,207.21,7.87]
[1756961561807,0.03247048,207.3,207.24,7.87]
[1756961565409,324.04,207.44,207.29,7.91]
[1756961565617,0.48,207.36,207.29,7.91]
[1756961565802,0.48,207.36,207.31,3.06131828]
[1756961566112,0.48,207.36,207.32,7.91]
[1756961566610,0.48,207.36,207.28,49.52]
[1756961566611,3.06131828,207.51,207.35,7.91]
[1756961566801,0.48,207.42,207.38,7.91]
[1756961567211,0.03657251,207.45,207.37,3.06131828]
[1756961567406,0.48,207.43,207.38,0.03481063]
[1756961567602,0.48,207.43,207.39,7.91]
[1756961568014,0.48,207.43,207.38,0.03481063]
[1756961568419,0.03657251,207.45,207.41,3.06131828]
[1756961568714,7.35,207.67,207.45,7.91]
[1756961568920,0.48,207.56,207.51,7.91]
[1756961569119,7.35,207.63,207.54,7.91]
[1756961569316,3.72887992,207.62,207.54,7.91]
[1756961569613,0.48,207.58,207.54,7.91]
[1756961569815,7.35,207.62,207.5,3.06131828]
[1756961570017,0.48,207.55,207.54,0.03473521]
[1756961570711,7.83,207.55,207.54,0.03473521]
[1756961570911,0.48,207.55,207.54,0.03473521]
[1756961573316,7.83,207.55,207.54,0.03473521]
[1756961575323,11.57592337,207.55,207.54,0.03473521]
[1756961576023,4.22592337,207.55,207.54,0.03473521]
[1756961576317,4.2281664,207.55,207.54,0.03473521]
[1756961578321,0.48,207.55,207.54,0.03473521]
[1756961578625,7.35,207.63,207.54,7.94473521]
[1756961578924,0.48,207.56,207.54,7.94473521]
[1756961579321,7.35,207.63,207.54,7.94473521]
[1756961579523,3.75315033,207.62,207.54,7.94473521]
[1756961579713,3.75315033,207.61,207.54,7.94473521]
[1756961579922,0.48,207.56,207.54,7.94473521]
[1756961582217,79.64,207.7,207.55,7.91]
[1756961582218,7.35,207.69,207.55,7.91]
[1756961582421,3.7526593,207.68,207.54,0.03473521]
[1756961582718,7.83,207.56,207.48,7.91]
[1756961582916,0.48,207.56,207.48,7.91]
[1756961583424,0.48,207.56,207.5,0.03645371]
[1756961583717,0.48,207.55,207.51,7.91]
[1756961584825,0.48,207.55,207.5,0.03645371]
[1756961585126,0.48,207.55,207.51,7.91]
[1756961585822,0.48,207.52,207.5,0.03645371]
[1756961586025,7.83,207.51,207.5,0.03645371]
[1756961586224,7.83,207.51,207.47,7.91]
[1756961586528,0.48,207.5,207.48,0.03202419]
[1756961586730,7.83,207.5,207.48,0.03202419]
[1756961586915,0.48,207.5,207.48,0.03202419]
[1756961587419,7.35,207.54,207.48,0.03202419]
[1756961587621,0.48,207.49,207.48,0.03202419]
[1756961588323,7.83,207.49,207.48,0.03202419]
[1756961588624,0.48,207.49,207.48,0.03202419]
[1756961589732,7.83,207.49,207.48,0.03202419]
[1756961592824,11.59714434,207.49,207.48,0.03202419]
[1756961593425,7.83,207.49,207.48,0.03202419]
[1756961594924,11.59912305,207.49,207.48,0.03202419]
[1756961599233,11.59912305,207.49,207.39,7.49]
[1756961599432,0.44797581,207.43,207.37,7.49]
[1756961599932,0.44797581,207.43,207.32,7.49]
[1756961600134,0.44797581,207.43,207.33,7.49]
[1756961600431,7.62,207.45,207.33,7.49]
[1756961600632,0.44797581,207.42,207.33,7.49]
[1756961601229,7.62,207.49,207.33,7.49]
[1756961601534,7.62,207.49,207.3,121.66]
[1756961601535,0.44797581,207.45,207.37,7.49]
[1756961604338,7.62,207.49,207.37,7.49]
[1756961604635,0.44797581,207.47,207.4,5.20375512]
[1756961604938,0.44797581,207.5,207.41,7.49]
[1756961606339,3.78478942,207.49,207.41,7.49]
[1756961606540,0.44797581,207.5,207.41,7.49]
[1756961607441,3.78795752,207.49,207.41,7.49]
[1756961607640,0.44797581,207.5,207.41,7.49]
[1756961607840,3.78798013,207.49,207.41,7.49]
[1756961608046,0.44797581,207.5,207.41,7.49]
[1756961608341,3.78794931,207.49,207.41,7.49]
[1756961608537,3.79077217,207.48,207.41,7.49]
[1756961608742,7.62,207.53,207.41,7.49]
[1756961608947,7.62,207.5,207.41,7.49]
[1756961609142,0.44797581,207.46,207.39,7.49]
[1756961609537,3.79364727,207.45,207.39,7.49]
[1756961609742,7.62,207.48,207.39,7.49]
[1756961609945,0.44797581,207.45,207.39,7.49]
[1756961610141,3.79369391,207.44,207.38,7.49]
[1756961610345,0.44797581,207.45,207.38,7.49]
[1756961610547,0.44797581,207.43,207.35,7.49]
[1756961610746,3.79665554,207.42,207.36,7.49]
[1756961610946,0.44797581,207.43,207.36,7.49]
[1756961611144,3.79701781,207.42,207.36,7.49]
[1756961611344,0.44797581,207.43,207.36,7.49]
[1756961611545,3.7988317,207.42,207.39,1.9636377]
[1756961611744,7.62,207.46,207.39,1.9636377]
[1756961611948,0.44797581,207.42,207.39,9.4536377]
[1756961613443,0.44797581,207.42,207.4,7.49]
[1756961617551,0.44797581,207.42,207.39,1.9636377]
[1756961617751,0.44797581,207.42,207.4,7.49]
[1756961618446,0.44797581,207.41,207.4,7.49]
[1756961620752,7.62,207.49,207.4,7.49]
[1756961620954,0.44797581,207.46,207.45,7.49]
[1756961621156,0.44797581,207.46,207.45,9.4536377]
[1756961621355,7.62,207.52,207.45,9.4536377]
[1756961621657,0.44797581,207.48,207.47,9.4536377]
[1756961623856,7.62,207.52,207.47,1.9636377]
[1756961624053,0.44797581,207.49,207.48,7.63]
[1756961625252,0.44797581,207.49,207.47,1.9636377]
[1756961625454,8.31797581,207.49,207.45,9.5936377]
[1756961625950,8.31797581,207.49,207.46,7.63]
[1756961626153,0.44797581,207.49,207.47,1.9636377]
[1756961626350,0.44797581,207.49,207.48,7.63]
[1756961632757,7.87,207.55,207.48,7.63]
[1756961632954,0.44797581,207.5,207.48,7.63]
[1756961633148,0.44797581,207.5,207.47,1.9636377]
[1756961633858,0.44797581,207.5,207.48,7.63]
[1756961634160,0.44797581,207.5,207.47,1.9636377]
[1756961634358,0.44797581,207.5,207.48,7.63]
[1756961635259,0.44797581,207.5,207.47,1.9636377]
[1756961635457,0.44797581,207.5,207.48,7.63]
[1756961635860,7.87,207.58,207.51,7.63]
[1756961636162,0.44797581,207.54,207.53,9.5936377]
[1756961638361,7.87,207.58,207.54,7.63]
[1756961638656,0.44797581,207.56,207.55,7.63]
[1756961639261,7.87,207.61,207.55,7.63]
[1756961639461,7.87,207.62,207.56,1.9636377]
[1756961640261,7.87,207.56,207.49,7.63]
[1756961640455,7.87,207.56,207.51,1.9636377]
[1756961640661,0.44797581,207.54,207.52,7.63]
[1756961641463,0.44797581,207.53,207.46,7.63]
[1756961641763,9.8336377,207.55,207.47,1.9636377]
[1756961641954,0.44797581,207.51,207.47,1.9636377]
[1756961642160,0.44797581,207.5,207.48,9.5936377]
[1756961642860,0.44797581,207.5,207.48,1.9636377]
[1756961643060,0.44797581,207.5,207.49,7.63]
[1756961643367,7.87,207.55,207.49,7.63]
[1756961643562,0.44797581,207.51,207.49,7.63]
[1756961644168,0.44797581,207.51,207.48,1.9636377]
[1756961644363,0.44797581,207.51,207.49,7.63]
[1756961645158,0.44797581,207.5,207.48,1.9636377]
[1756961645362,0.44797581,207.49,207.46,9.5936377]
[1756961645562,0.44797581,207.49,207.47,7.63]
[1756961645968,0.44797581,207.49,207.46,1.9636377]
[1756961646168,0.44797581,207.49,207.47,7.63]
[1756961646365,0.44797581,207.49,207.46,1.9636377]
[1756961646664,0.44797581,207.49,207.48,1.9636377]
[1756961646867,7.87,207.53,207.49,7.63]
[1756961647072,0.44797581,207.5,207.49,7.63]
[1756961647767,0.44797581,207.5,207.48,9.5936377]
[1756961647969,0.44797581,207.5,207.49,7.63]
[1756961652069,0.44797581,207.5,207.46,7.5]
[1756961652374,0.44797581,207.5,207.45,3.0655792]
[1756961653473,0.44797581,207.5,207.46,7.5]
[1756961653677,0.44797581,207.5,207.45,3.0655792]
[1756961653868,0.44797581,207.5,207.46,7.5]
[1756961654565,0.44797581,207.5,207.45,3.0655792]
[1756961654771,0.44797581,207.5,207.46,7.5]
[1756961655369,0.44797581,207.5,207.45,3.0655792]
[1756961655972,0.44797581,207.5,207.41,4.05380905]
[1756961656171,0.44797581,207.48,207.42,10.5655792]
[1756961659474,0.44797581,207.48,207.42,3.0655792]
[1756961659677,0.44797581,207.48,207.43,7.5]
[1756961659877,0.44797581,207.48,207.42,3.0655792]
[1756961661778,0.44797581,207.48,207.43,7.5]
[1756961663079,7.33,207.51,207.43,7.5]
[1756961663280,0.44797581,207.47,207.43,7.5]
[1756961664484,7.33,207.59,207.46,7.5]
[1756961664779,0.44797581,207.52,207.51,7.5]
[1756961665684,7.33,207.59,207.51,7.5]
[1756961666081,0.44797581,207.54,207.47,11.55380905]
[1756961666282,7.33,207.55,207.47,10.5655792]
[1756961666477,0.44797581,207.51,207.47,3.0655792]
[1756961667386,0.44797581,207.51,207.48,7.5]
[1756961667587,0.44797581,207.51,207.47,3.0655792]
[1756961668284,7.77797581,207.51,207.48,7.5]
[1756961668485,7.33,207.5,207.47,10.5655792]
[1756961668877,0.44797581,207.51,207.48,7.5]
[1756961669690,0.44797581,207.51,207.47,3.0655792]
[1756961670584,0.44797581,207.51,207.48,7.5]
[1756961671290,0.44797581,207.51,207.47,3.0655792]
[1756961671493,0.44797581,207.51,207.48,7.5]
[1756961671695,0.44797581,207.51,207.47,3.0655792]
[1756961671893,0.44797581,207.51,207.48,7.5]
[1756961672793,0.44797581,207.51,207.47,3.0655792]
[1756961672988,0.44797581,207.51,207.48,7.5]
[1756961673190,0.44797581,207.51,207.47,3.0655792]
[1756961673692,0.44797581,207.51,207.45,7.5]
[1756961673887,0.44797581,207.51,207.46,3.0655792]
[1756961674688,0.44797581,207.51,207.47,7.5]
[1756961674985,0.44797581,207.51,207.46,3.0655792]
[1756961676094,0.44797581,207.51,207.47,7.5]
[1756961676801,0.44797581,207.51,207.46,3.0655792]
[1756961676997,0.44797581,207.51,207.47,7.5]
[1756961677392,7.33,207.57,207.5,7.5]
[1756961677596,0.44797581,207.52,207.5,7.5]
[1756961677799,0.44797581,207.52,207.49,3.0655792]
[1756961678098,0.44797581,207.52,207.5,7.5]
[1756961678492,0.44797581,207.52,207.49,3.0655792]
[1756961678694,0.44797581,207.52,207.5,7.5]
[1756961679108,0.44797581,207.52,207.49,3.0655792]
[1756961679398,7.33,207.57,207.5,7.5]
[1756961679600,0.44797581,207.51,207.5,7.5]
[1756961679796,0.44797581,207.51,207.47,7.5]
[1756961680001,7.77797581,207.51,207.44,7.11938825]
[1756961680198,0.44797581,207.51,207.47,3.0655792]
[1756961680402,0.44797581,207.51,207.48,7.5]
[1756961681995,0.44797581,207.51,207.48,7.94]
[1756961682198,0.44797581,207.51,207.47,7.11938825]
[1756961682398,7.33,207.57,207.48,7.94]
[1756961682595,0.44797581,207.53,207.51,7.94]
[1756961682799,0.44797581,207.53,207.5,3.0655792]
[1756961683003,0.44797581,207.53,207.51,7.94]
[1756961683206,0.44797581,207.53,207.5,3.0655792]
[1756961683601,0.44797581,207.53,207.51,7.94]
[1756961684303,0.44797581,207.53,207.5,3.0655792]
[1756961684805,0.44797581,207.53,207.51,7.94]
[1756961685000,0.44797581,207.53,207.5,3.0655792]
[1756961685907,0.44797581,207.53,207.51,7.94]
[1756961686503,0.44797581,207.53,207.5,3.0655792]
[1756961686703,0.44797581,207.53,207.51,7.94]
[1756961687403,0.44797581,207.53,207.5,3.0655792]
[1756961687602,0.44797581,207.53,207.52,7.94]
[1756961690803,8.20797581,207.53,207.47,3.0655792]
[1756961691007,7.76,207.53,207.47,3.0655792]
[1756961691211,0.44797581,207.49,207.48,7.94]
[1756961697616,7.76,207.53,207.47,3.0655792]
[1756961697811,0.44797581,207.5,207.47,3.0655792]
[1756961698015,0.44797581,207.5,207.48,7.94]
[1756961698217,0.44797581,207.5,207.47,3.0655792]
[1756961698712,0.44797581,207.5,207.48,7.94]
[1756961699110,0.44797581,207.5,207.47,3.0655792]
[1756961699312,7.76,207.53,207.48,7.94]
[1756961699916,7.76,207.53,207.47,3.0655792]
[1756961700118,7.76,207.53,207.48,7.94]
[1756961700315,0.44797581,207.5,207.47,3.0655792]
[1756961700619,0.44797581,207.5,207.48,7.94]
[1756961701020,0.44797581,207.5,207.47,3.0655792]
[1756961701618,0.44797581,207.5,207.48,7.94]
[1756961701822,0.44797581,207.5,207.49,7.94]
[1756961702613,61.0,207.59,207.49,7.94]
[1756961702614,7.76,207.58,207.49,7.94]
[1756961702815,0.44797581,207.52,207.5,3.0655792]
[1756961703018,0.44797581,207.53,207.51,7.94]
[1756961704323,0.44797581,207.53,207.5,3.0655792]
[1756961704719,0.44797581,207.53,207.51,7.94]
[1756961705525,0.44797581,207.53,207.5,7.11938825]
[1756961705825,7.76,207.58,207.51,7.94]
[1756961706125,0.44797581,207.55,207.54,7.94]
[1756961713531,0.44797581,207.55,207.54,9.90071535]
[1756961722043,7.92,207.65,207.54,9.90071535]
[1756961722239,0.44797581,207.57,207.54,7.94]
[1756961723440,0.44797581,207.57,207.51,4.05423214]
[1756961723441,0.44797581,207.57,207.56,9.63071535]
[1756961725543,0.44797581,207.57,207.56,7.67]
[1756961725741,0.44797581,207.57,207.56,9.63071535]
[1756961725944,7.92,207.63,207.56,9.63071535]
[1756961726141,0.44797581,207.58,207.57,7.67]
[1756961729539,0.44797581,207.58,207.56,1.96071535]
[1756961729744,0.44797581,207.58,207.56,9.63071535]
[1756961730345,8.36797581,207.58,207.56,9.63071535]
[1756961730647,0.44797581,207.57,207.56,9.63071535]
[1756961731152,0.44797581,207.57,207.56,7.67]
[1756961733751,0.44797581,207.57,207.55,9.63071535]
[1756961733953,7.92,207.63,207.55,9.63071535]
[1756961734143,0.44797581,207.56,207.55,9.63071535]
[1756961739649,7.92,207.63,207.56,7.67]
[1756961739856,0.44797581,207.58,207.56,7.67]
[1756961741052,0.44797581,207.58,207.57,1.96071535]
[1756961741258,0.44797581,207.58,207.57,9.63071535]
[1756961743561,7.92,207.63,207.57,9.63071535]
[1756961743754,0.44797581,207.59,207.55,7.89]
[1756961744253,0.44797581,207.59,207.55,4.0522341]
[1756961744558,0.44797581,207.59,207.56,7.89]
[1756961744758,0.44797581,207.59,207.55,4.0522341]
[1756961746065,0.44797581,207.59,207.58,1.96071535]
[1756961746559,8.17797581,207.59,207.56,9.85071535]
[1756961746755,7.73,207.59,207.56,9.85071535]
[1756961746951,0.44797581,207.58,207.56,1.96071535]
[1756961747156,0.44797581,207.58,207.57,7.89]
[1756961759266,7.73,207.65,207.57,7.89]
[1756961759467,0.44797581,207.58,207.57,7.89]
[1756961760663,0.44797581,207.58,207.57,9.85071535]
[1756961775595,0.44797581,207.58,207.57,7.89]
[1756961778298,7.52,207.65,207.57,7.89]
[1756961778500,0.44797581,207.6,207.59,10.56260204]
[1756961779697,0.44797581,207.6,207.59,7.5]
[1756961780200,0.44797581,207.6,207.57,7.5]
[1756961780391,0.44797581,207.58,207.57,7.5]
[1756961803019,7.88,207.57,207.55,7.88]
[1756961803221,0.44797581,207.56,207.54,7.88]
[1756961803418,7.88,207.57,207.54,7.88]
[1756961803620,0.44797581,207.55,207.54,7.88]
[1756961818434,7.88,207.61,207.54,7.88]
[1756961818639,0.44797581,207.56,207.54,7.88]
[1756961819237,7.88,207.61,207.54,7.88]
[1756961819532,7.88,207.61,207.52,7.88]
[1756961819732,0.44797581,207.56,207.52,7.88]
[1756961821634,0.44797581,207.56,207.51,3.06260204]
[1756961822028,0.44797581,207.56,207.52,7.88]
[1756961822229,0.44797581,207.56,207.51,3.06260204]
[1756961822535,0.44797581,207.56,207.52,7.88]
[1756961822736,0.44797581,207.56,207.51,3.06260204]
[1756961823036,0.44797581,207.54,207.5,4.06193461]
[1756961823230,0.44797581,207.54,207.51,7.88]
[1756961823428,0.44797581,207.54,207.5,7.88]
[1756961823631,0.44797581,207.54,207.49,4.06193461]
[1756961823827,0.44797581,207.54,207.5,7.88]
[1756961824628,0.44797581,207.54,207.49,4.06193461]
[1756961824830,0.44797581,207.54,207.5,7.88]
[1756961826034,0.44797581,207.54,207.49,4.06193461]
[1756961826238,0.44797581,207.54,207.5,7.88]
[1756961826435,0.44797581,207.54,207.49,4.06193461]
[1756961828035,0.44797581,207.54,207.49,4.05476569]
[1756961828243,0.44797581,207.54,207.5,7.88]
[1756961828443,0.44797581,207.54,207.49,4.05476569]
[1756961828739,0.44797581,207.54,207.5,7.88]
[1756961830744,0.44797581,207.54,207.49,4.05476569]
[1756961830945,8.32797581,207.54,207.49,4.05476569]
[1756961831346,8.32797581,207.54,207.49,4.8935018]
[1756961831541,8.32797581,207.54,207.5,7.88]
[1756961832045,8.32797581,207.54,207.5,7.45]
[1756961832247,8.32797581,207.54,207.49,4.8935018]
[1756961832545,0.44797581,207.54,207.49,4.8935018]
[1756961832746,0.44797581,207.54,207.5,7.45]
[1756961832946,0.44797581,207.54,207.49,4.8935018]
[1756961833450,0.44797581,207.54,207.5,7.45]
[1756961837547,0.44797581,207.54,207.53,7.45]
[1756961837750,7.55,207.59,207.53,7.45]
[1756961837946,0.44797581,207.54,207.53,7.45]
[1756961841947,7.55,207.53,207.5,7.45]
[1756961842247,1.96113714,207.56,207.5,7.45]
[1756961842248,7.55,207.55,207.5,7.45]
[1756961842552,0.44797581,207.51,207.5,7.45]
[1756961844147,0.44797581,207.51,207.46,0.83879676]
[1756961844351,7.55,207.54,207.48,9.41113714]
[1756961844552,0.44797581,207.49,207.48,9.41113714]
[1756961844748,0.44797581,207.5,207.49,7.45]
[1756961846156,0.44797581,207.5,207.49,9.41113714]
[1756961848351,0.44797581,207.5,207.49,7.45]
[1756961853354,7.99797581,207.5,207.48,9.41113714]
[1756961854052,0.44797581,207.5,207.49,7.45]
[1756961857454,0.44797581,207.5,207.47,7.45]
[1756961857755,7.55,207.52,207.46,9.41113714]
[1756961858053,0.44797581,207.49,207.46,1.96113714]
[1756961858251,0.44797581,207.49,207.47,7.45]
[1756961858554,0.44797581,207.49,207.46,1.96113714]
[1756961859253,0.44797581,207.49,207.47,7.45]
[1756961859451,0.44797581,207.49,207.46,1.96113714]
[1756961859650,0.44797581,207.49,207.47,9.41113714]
[1756961860248,0.44797581,207.49,207.48,7.45]
[1756961868553,7.54,207.48,207.43,3.60678988]
[1756961868760,0.48,207.49,207.42,0.83891808]
[1756961869064,7.54,207.5,207.38,7.51]
[1756961869259,7.54,207.43,207.38,7.51]
[1756961869463,7.54,207.43,207.37,7.51]
[1756961869959,0.03467631,207.42,207.36,7.51]
[1756961870256,1.99581345,207.42,207.36,7.51]
[1756961870465,7.54,207.41,207.36,7.51]
[1756961870662,1.99581345,207.42,207.36,7.51]
[1756961870962,7.54,207.41,207.36,7.51]
[1756961871361,1.99581345,207.42,207.36,7.51]
[1756961871556,7.54,207.41,207.36,7.51]
[1756961871752,1.99581345,207.42,207.36,7.51]
[1756961871956,7.54,207.41,207.36,7.51]
[1756961872162,0.03467631,207.42,207.36,7.51]
[1756961872361,1.99581345,207.42,207.36,7.51]
[1756961872865,7.54,207.41,207.36,7.51]
[1756961873258,9.50113714,207.41,207.33,9.47113714]
[1756961873553,0.03467631,207.42,207.33,9.47113714]
[1756961873554,9.50113714,207.4,207.33,9.47113714]
[1756961873755,7.54,207.4,207.34,1.96113714]
[1756961874157,7.54,207.41,207.35,7.51]
[1756961877461,7.54,207.41,207.33,9.47113714]
[1756961877462,1.96113714,207.4,207.33,9.47113714]
[1756961878166,7.54,207.39,207.33,9.47113714]
[1756961878464,7.54,207.39,207.33,7.51]
[1756961878658,7.54,207.39,207.33,9.47113714]
[1756961879666,7.54,207.39,207.33,7.51]
[1756961884565,7.54,207.39,207.33,9.47113714]
[1756961884766,7.54,207.39,207.33,1.96113714]
[1756961884967,68.54,207.41,207.35,9.47113714]
[1756961885560,7.54,207.39,207.35,9.47113714]
[1756961885764,0.03044669,207.4,207.35,9.47113714]
[1756961885965,7.54,207.39,207.36,7.51]
[1756961887167,0.03044669,207.4,207.34,1.96113714]
[1756961887559,0.03044669,207.4,207.35,7.51]
[1756961887959,0.03044669,207.4,207.34,1.96113714]
[1756961888165,0.03044669,207.4,207.33,1.96113714]
[1756961888369,1.99158383,207.4,207.34,7.51]
[1756961888762,9.53158383,207.4,207.34,7.51]
[1756961888962,7.54,207.38,207.31,9.47113714]
[1756961889168,9.50113714,207.38,207.31,9.47113714]
[1756961889566,3.71577121,207.37,207.31,7.51]
[1756961889872,9.50113714,207.38,207.31,7.51]
[1756961890172,3.71612739,207.37,207.31,7.51]
[1756961890367,9.50113714,207.38,207.31,7.51]
[1756961890567,3.71634378,207.37,207.31,7.51]
[1756961890764,9.50113714,207.38,207.31,7.51]
[1756961890966,3.71634608,207.37,207.31,7.51]
[1756961891163,9.50113714,207.38,207.31,7.51]
[1756961891466,3.71615266,207.37,207.31,7.51]
[1756961891666,3.71590266,207.36,207.31,7.51]
[1756961891864,61.0,207.39,207.27,7.51]
[1756961891865,9.50113714,207.34,207.27,7.51]
[1756961892068,7.54,207.34,207.27,7.51]
[1756961892270,7.54,207.34,207.28,1.96113714]
[1756961892576,3.745165,207.33,207.27,7.68]
[1756961892775,0.03078218,207.33,207.27,9.64113714]
[1756961893170,0.03078218,207.33,207.27,7.68]
[1756961893366,0.03078218,207.33,207.27,9.64113714]
[1756961894471,7.84078218,207.33,207.27,7.68]
[1756961895177,0.03078218,207.33,207.29,7.68]
[1756961895372,7.81,207.32,207.29,7.68]
[1756961896976,7.81,207.32,207.28,7.68]
[1756961897173,7.81,207.32,207.27,1.96113714]
[1756961897578,7.81,207.32,207.28,7.68]
[1756961897877,7.81,207.32,207.27,1.96113714]
[1756961898072,7.81,207.32,207.28,7.68]
[1756961898274,0.03078218,207.33,207.28,7.68]
[1756961899484,7.84078218,207.33,207.27,7.68]
[1756961902680,7.81,207.31,207.27,7.68]
[1756961902878,7.81,207.32,207.23,7.68]
[1756961903082,7.81,207.32,207.23,8.51969742]
[1756961903283,7.81,207.3,207.23,8.51969742]
[1756961903479,7.84586749,207.3,207.23,8.51969742]
[1756961906384,0.03586749,207.3,207.23,8.51969742]
[1756961906586,0.03586749,207.3,207.24,3.07180832]
[1756961906788,0.03586749,207.3,207.25,7.68]
[1756961907283,0.03586749,207.3,207.24,3.07180832]
[1756961907584,0.03586749,207.3,207.25,7.68]
[1756961910476,0.03586749,207.3,207.28,7.68]
[1756961910784,7.81,207.43,207.28,7.68]
[1756961911087,3.71702184,207.42,207.32,7.68]
[1756961911276,3.71702184,207.41,207.32,7.68]
[1756961911476,3.71702184,207.4,207.32,7.68]
[1756961911685,3.71702184,207.39,207.32,7.68]
[1756961911887,3.71702184,207.38,207.34,0.03518491]
[1756961912086,3.71702184,207.37,207.35,7.68]
[1756961912383,7.81,207.45,207.35,7.68]
[1756961912580,3.72467513,207.44,207.35,7.68]
[1756961912786,3.72467513,207.43,207.35,7.68]
[1756961912984,11.53467513,207.42,207.38,7.68]
[1756961913180,3.72467513,207.41,207.38,7.68]
[1756961913384,3.72467513,207.4,207.38,7.68]
[1756961913588,3.72467513,207.39,207.38,7.68]